bitfinex/quotes_BTCUSD_20250308
["timestamp","ask_amount","ask_price","bid_price","bid_amount"]
[1741432654696,0.643412,86167.0,86147.0,0.11116]
[1741432656468,0.65222758,86167.0,86147.0,0.11116]
[1741432658582,0.67043326,86167.0,86147.0,0.11116]
[1741432661873,0.67043326,86167.0,86141.0,0.0003396]
[1741432662083,0.67043326,86167.0,86149.0,0.11088]
[1741432665227,0.42672126,86167.0,86149.0,0.11088]
[1741432665433,0.67043326,86167.0,86149.0,0.11088]
[1741432665837,0.24376,86150.0,86149.0,0.09271458]
[1741432666040,0.24376,86150.0,86149.0,0.09277766]
[1741432667154,0.011607,86150.0,86149.0,0.09277766]
[1741432668764,0.02981298,86150.0,86149.0,0.09277766]
[1741432669171,0.04277596,86150.0,86149.0,0.09277766]
[1741432669841,0.02981298,86150.0,86149.0,0.09277766]
[1741432671729,0.04275421,86150.0,86149.0,0.09277766]
[1741432673009,0.02981298,86150.0,86149.0,0.09277766]
[1741432675546,0.04238767,86150.0,86149.0,0.09277766]
[1741432675933,0.02418169,86150.0,86149.0,0.07457161]
[1741432676140,0.02418169,86150.0,86149.0,6.308e-05]
[1741432678935,0.04238779,86150.0,86149.0,6.308e-05]
[1741432680732,0.04238779,86150.0,86149.0,0.00040288]
[1741432685883,0.011608,86145.0,86144.0,0.09335675]
[1741432688682,0.011608,86145.0,86141.0,0.0003396]
[1741432688683,0.011608,86142.0,86141.0,0.0003396]
[1741432688892,0.12363245,86142.0,86141.0,0.0003396]
[1741432689098,0.42363245,86142.0,86141.0,0.0003396]
[1741432689721,0.42363245,86142.0,86141.0,6e-07]
[1741432690173,0.58291245,86142.0,86141.0,6e-07]
[1741432690393,1.14594044,86142.0,86141.0,6e-07]
[1741432691208,1.14594044,86142.0,86123.0,4e-05]
[1741432691413,0.543834,86124.0,86123.0,4e-05]
[1741432691824,0.57808832,86124.0,86123.0,4e-05]
[1741432692181,0.56204866,86124.0,86123.0,4e-05]
[1741432692613,0.543834,86124.0,86123.0,4e-05]
[1741432695247,0.232223,86124.0,86123.0,4e-05]
[1741432695572,0.01161,86127.0,86123.0,4e-05]
[1741432695772,0.01161,86126.0,86123.0,4e-05]
[1741432695928,0.01821285,86124.0,86123.0,4e-05]
[1741432696597,0.02982385,86124.0,86123.0,4e-05]
[1741432697205,0.01821285,86124.0,86123.0,4e-05]
[1741432697690,0.02982385,86124.0,86123.0,4e-05]
[1741432704359,0.011611,86124.0,86123.0,4e-05]
[1741432704640,0.057811,86124.0,86123.0,4e-05]
[1741432705756,0.673656,86124.0,86123.0,4e-05]
[1741432705930,0.357811,86124.0,86123.0,4e-05]
[1741432707354,0.37602621,86124.0,86123.0,4e-05]
[1741432708463,0.543856,86116.0,86115.0,0.0003398]
[1741432708673,0.543856,86116.0,86115.0,0.00040291]
[1741432712803,0.55273207,86116.0,86115.0,0.00040291]
[1741432716324,0.55373207,86116.0,86115.0,0.00740291]
[1741432717578,0.55273207,86116.0,86115.0,0.00040291]
[1741432718050,0.55373207,86116.0,86115.0,0.00740291]
[1741432720001,0.543867,86112.0,86111.0,0.0003396]
[1741432720208,0.655467,86112.0,86111.0,0.0003396]
[1741432721338,0.656467,86112.0,86111.0,0.0073396]
[1741432723162,0.67468506,86112.0,86111.0,0.0073396]
[1741432723363,0.7089319,86112.0,86111.0,0.0073396]
[1741432725869,0.243924,86092.0,86091.0,0.0726402]
[1741432726633,0.21282651,86094.0,86091.0,0.0726402]
[1741432726833,0.232309,86092.0,86091.0,0.0726402]
[1741432727090,0.243924,86092.0,86091.0,0.0726402]
[1741432727692,0.24160565,86092.0,86091.0,0.0726402]
[1741432727918,0.24260565,86092.0,86091.0,0.0736402]
[1741432728236,0.24260565,86092.0,86091.0,0.08818105]
[1741432728450,0.01330041,86092.0,86091.0,0.08818105]
[1741432728899,0.04313446,86092.0,86091.0,0.08818105]
[1741432729785,0.27544346,86092.0,86091.0,0.08818105]
[1741432732836,0.01921905,86092.0,86091.0,0.32049305]
[1741432733151,0.001,86092.0,86091.0,0.37870805]
[1741432735114,0.011614,86101.0,86095.0,0.0753]
[1741432735348,0.011613,86105.0,86100.0,0.0753]
[1741432735532,0.011613,86105.0,86101.0,0.12594085]
[1741432735736,0.011614,86102.0,86101.0,0.12594085]
[1741432736098,0.011613,86104.0,86101.0,0.12594085]
[1741432736493,0.011614,86102.0,86101.0,0.12594085]
[1741432737324,0.243924,86092.0,86091.0,0.04694]
[1741432737537,0.243924,86092.0,86091.0,0.15838]
[1741432737741,0.243924,86092.0,86091.0,0.04694]
[1741432737945,0.244924,86092.0,86091.0,0.04694]
[1741432738149,0.244924,86092.0,86091.0,0.00034]
[1741432738355,0.243924,86092.0,86091.0,0.00034]
[1741432738573,0.57824384,86092.0,86091.0,0.00034]
[1741432738799,0.59746384,86092.0,86091.0,0.00034]
[1741432739211,0.59646384,86092.0,86091.0,0.00034]
[1741432739525,0.59746384,86092.0,86091.0,0.00034]
[1741432740284,0.59746384,86092.0,86090.0,6e-07]
[1741432740285,0.311615,86091.0,86090.0,6e-07]
[1741432740489,0.311615,86091.0,86087.0,2e-07]
[1741432740490,0.011616,86088.0,86087.0,2e-07]
[1741432740690,0.04593584,86088.0,86087.0,2e-07]
[1741432741075,0.12503584,86088.0,86087.0,2e-07]
[1741432741281,0.3,86079.0,86078.0,8e-07]
[1741432741508,0.34592212,86079.0,86078.0,8e-07]
[1741432741717,0.34592212,86079.0,86078.0,7e-08]
[1741432742297,0.3641459,86079.0,86078.0,7e-08]
[1741432742500,0.34592212,86079.0,86078.0,7e-08]
[1741432743669,0.03430512,86079.0,86059.0,0.005]
[1741432743877,0.03430512,86079.0,86057.0,0.0003398]
[1741432743878,0.011619,86060.0,86057.0,8e-07]
[1741432744129,0.01162,86058.0,86057.0,8e-07]
[1741432745357,0.01162,86058.0,86050.0,0.05]
[1741432745358,0.544041,86051.0,86050.0,8e-07]
[1741432746251,0.60765204,86051.0,86050.0,8e-07]
[1741432746606,0.54442835,86051.0,86050.0,8e-07]
[1741432749156,0.55309344,86051.0,86050.0,8e-07]
[1741432755568,0.55309344,86051.0,86016.0,0.06674975]
[1741432755569,0.011625,86017.0,86016.0,0.06674975]
[1741432755774,0.011625,86017.0,86016.0,0.17822975]
[1741432756174,0.011625,86019.0,86016.0,0.17822975]
[1741432756371,0.011625,86018.0,86016.0,0.17822975]
[1741432757123,0.01201211,86018.0,86016.0,0.17822975]
[1741432757498,0.011625,86017.0,86016.0,0.1927706]
[1741432758270,0.011625,86017.0,86016.0,0.01454085]
[1741432758480,0.011626,86009.0,86005.0,0.00034]
[1741432758676,0.011626,86009.0,86006.0,0.11156]
[1741432758926,0.011626,86012.0,86006.0,0.11156]
[1741432759180,0.01823392,86017.0,86013.0,0.011626]
[1741432759365,0.01823392,86017.0,86016.0,0.1255]
[1741432759689,0.01823392,86017.0,86016.0,0.25284328]
[1741432759878,0.01823392,86017.0,86016.0,0.25168085]
[1741432760114,0.02985892,86017.0,86016.0,0.25168085]
[1741432760435,0.02985892,86017.0,86016.0,0.49581985]
[1741432760436,0.01823392,86017.0,86016.0,0.49581985]
[1741432762526,0.011624,86027.0,86017.0,0.01454085]
[1741432762715,0.232489,86026.0,86017.0,0.01570324]
[1741432762920,0.011624,86024.0,86017.0,0.01570324]
[1741432763129,0.232504,86020.0,86017.0,0.01570324]
[1741432763325,0.01201211,86018.0,86017.0,0.12642085]
[1741432764746,0.011626,86011.0,86010.0,0.0819]
[1741432764949,0.011626,86009.0,86007.0,0.047]
[1741432765150,0.011626,86009.0,86008.0,0.12642085]
[1741432765971,0.011626,86010.0,86008.0,0.12642085]
[1741432766357,0.01201211,86018.0,86008.0,0.12642085]
[1741432766559,0.00038711,86018.0,86010.0,0.01454085]
[1741432766758,0.01823389,86016.0,86015.0,0.09644085]
[1741432767820,0.01823389,86016.0,86015.0,0.09760329]
[1741432768941,0.01823389,86016.0,86015.0,0.09644085]
[1741432769144,0.011626,86014.0,86013.0,0.00116251]
[1741432769356,0.011626,86014.0,86009.0,0.0753]
[1741432769357,0.011626,86014.0,86010.0,0.01454085]
[1741432769520,0.011626,86014.0,86010.0,0.01570337]
[1741432769725,0.011626,86012.0,86011.0,0.01454085]
[1741432769943,0.011626,86014.0,86011.0,0.01454085]
[1741432770142,0.244157,86010.0,86007.0,0.047]
[1741432770339,0.011626,86010.0,86008.0,0.11204]
[1741432770541,0.011626,86009.0,86008.0,0.11204]
[1741432770864,0.011626,86009.0,86004.0,0.0015026]
[1741432771076,0.011626,86009.0,86008.0,0.12674085]
[1741432772835,0.011626,86010.0,86009.0,0.01454085]
[1741432773035,0.244157,86010.0,86009.0,0.12662085]
[1741432773501,0.011626,86010.0,86009.0,0.12662085]
[1741432774150,0.011626,86010.0,86005.0,0.0015026]
[1741432774151,0.244165,86007.0,86006.0,0.01454085]
[1741432774354,0.244165,86007.0,86006.0,0.12662085]
[1741432774553,0.011626,86007.0,86006.0,0.12662085]
[1741432774756,0.011626,86010.0,86006.0,0.12662085]
[1741432775081,0.01823511,86007.0,86006.0,0.12662085]
[1741432782261,0.011624,86026.0,86013.0,0.011626]
[1741432782460,0.011624,86028.0,86016.0,0.011625]
[1741432782636,0.24411,86027.0,86017.0,0.12748198]
[1741432782859,0.011624,86028.0,86017.0,0.12748198]
[1741432782860,0.011624,86028.0,86017.0,0.12702085]
[1741432783070,0.011624,86027.0,86019.0,0.01454085]
[1741432783230,0.011623,86030.0,86019.0,0.01454085]
[1741432783423,0.011624,86027.0,86019.0,0.01454085]
[1741432783838,0.011623,86031.0,86021.0,0.01454085]
[1741432784091,0.232469,86033.0,86021.0,0.01354085]
[1741432784249,0.011623,86029.0,86021.0,0.00116239]
[1741432784438,0.011624,86027.0,86020.0,0.00116239]
[1741432784633,0.011624,86026.0,86020.0,0.00116239]
[1741432785321,0.011624,86026.0,86018.0,0.0011624]
[1741432785512,0.05757963,86029.0,86018.0,0.0011624]
[1741432785720,0.011623,86030.0,86018.0,0.0011624]
[1741432785963,0.0001698,86020.0,86018.0,0.0011624]
[1741432786220,0.0001698,86020.0,86019.0,0.01454085]
[1741432786887,0.01840211,86020.0,86019.0,0.5652206]
[1741432787100,0.01840211,86020.0,86019.0,0.6254456]
[1741432787663,0.01840211,86020.0,86019.0,1.4614456]
[1741432788068,0.01840211,86020.0,86019.0,1.4594456]
[1741432788355,0.011618,86066.0,86050.0,0.011621]
[1741432788558,0.011617,86074.0,86063.0,0.232387]
[1741432788776,0.011618,86067.0,86065.0,0.01454085]
[1741432788982,0.243995,86067.0,86066.0,0.12710085]
[1741432790010,0.243995,86067.0,86066.0,0.11256]
[1741432790672,0.011618,86067.0,86066.0,0.10956]
[1741432790867,0.232358,86074.0,86066.0,0.10956]
[1741432791073,0.243983,86072.0,86066.0,0.10956]
[1741432791271,0.014618,86067.0,86066.0,0.10956]
[1741432791676,0.003,86067.0,86066.0,0.10956]
[1741432791885,0.014618,86067.0,86066.0,0.10956]
[1741432792084,0.011618,86067.0,86066.0,0.10956]
[1741432796724,0.01822438,86067.0,86066.0,0.12410085]
[1741432798233,0.02984238,86067.0,86066.0,0.12510085]
[1741432798373,0.02984238,86067.0,86066.0,0.12410085]
[1741432798578,0.02984238,86067.0,86066.0,0.10956]
[1741432798820,0.02984238,86067.0,86066.0,0.11056]
[1741432801587,0.02984238,86067.0,86066.0,0.11258]
[1741432803256,0.01822438,86067.0,86066.0,0.12712085]
[1741432803656,0.01822438,86067.0,86066.0,0.12828262]
[1741432803864,0.01822438,86067.0,86066.0,0.13873885]
[1741432804057,0.0001698,86070.0,86067.0,0.01454085]
[1741432804293,0.0001698,86070.0,86067.0,0.01570261]
[1741432804494,0.011618,86068.0,86067.0,0.01454085]
[1741432805484,0.0001698,86070.0,86067.0,0.01454085]
[1741432805709,0.0001698,86070.0,86069.0,0.02615885]
[1741432806038,0.0001698,86070.0,86069.0,0.2670326]
[1741432806364,0.0001698,86070.0,86069.0,0.28229834]
[1741432807224,0.0001698,86070.0,86069.0,0.29072394]
[1741432807434,0.0001698,86070.0,86069.0,0.2670326]
[1741432808214,0.0001698,86070.0,86069.0,0.2740326]
[1741432808592,0.01838972,86070.0,86069.0,0.3863126]
[1741432808771,0.0001698,86070.0,86069.0,0.3863126]
[1741432809219,0.0001698,86070.0,86069.0,0.3862726]
[1741432812703,0.01838953,86070.0,86069.0,0.4642726]
[1741432812818,0.01838953,86070.0,86069.0,0.4892726]
[1741432813250,0.0001698,86070.0,86069.0,1.0232726]
[1741432813458,0.0001698,86070.0,86069.0,0.9982726]
[1741432813657,0.0001698,86070.0,86069.0,0.8860326]
[1741432813902,0.0001698,86070.0,86069.0,0.9982326]
[1741432814077,0.0001698,86070.0,86069.0,0.9912326]
[1741432814454,0.0001698,86070.0,86069.0,0.9982326]
[1741432816217,0.01838972,86070.0,86069.0,0.9982326]
[1741432817367,0.01838972,86070.0,86069.0,0.007]
[1741432817368,0.26237672,86070.0,86069.0,0.007]
[1741432818191,0.26237672,86070.0,86066.0,0.0003394]
[1741432818411,0.243995,86067.0,86066.0,0.0003394]
[1741432819285,0.243995,86067.0,86066.0,0.1128594]
[1741432820685,0.243995,86067.0,86066.0,0.0003394]
[1741432821486,0.243995,86067.0,86066.0,0.0043394]
[1741432821935,0.232371,86069.0,86066.0,0.0043394]
[1741432822147,0.243995,86067.0,86066.0,0.0003394]
[1741432822354,0.2441647,86067.0,86066.0,0.0003394]
[1741432822522,0.2441647,86067.0,86066.0,0.0043394]
[1741432823845,0.6733647,86067.0,86066.0,0.0043394]
[1741432824050,0.6733647,86067.0,86066.0,0.0003394]
[1741432824248,0.6733647,86067.0,86066.0,0.0033394]
[1741432824657,0.6733647,86067.0,86066.0,0.0003394]
[1741432825029,0.6733647,86067.0,86066.0,0.0023394]
[1741432825231,0.6733647,86067.0,86066.0,4e-07]
[1741432825974,0.673237,86052.0,86051.0,1e-08]
[1741432827681,0.69146831,86052.0,86051.0,1e-08]
[1741432828054,0.69146831,86052.0,86051.0,0.00100001]
[1741432828861,0.69146831,86052.0,86051.0,1e-08]
[1741432829772,0.69146831,86052.0,86051.0,4.001e-05]
[1741432830776,1.11787104,86052.0,86051.0,4.001e-05]
[1741432830989,0.244126,86021.0,86020.0,0.11248]
[1741432831180,0.244126,86021.0,86007.0,0.00162356]
[1741432831181,0.011625,86019.0,86012.0,0.11248]
[1741432831807,0.02985836,86019.0,86012.0,0.11248]
[1741432832209,0.02997442,86019.0,86012.0,0.11248]
[1741432833435,0.02997442,86019.0,86018.0,0.0003796]
[1741432833835,0.02997442,86019.0,86018.0,0.0073796]
[1741432843463,0.01834942,86019.0,86018.0,0.0073796]
[1741432843661,0.01834942,86019.0,86018.0,0.0003796]
[1741432844079,0.01834942,86019.0,86018.0,0.0053796]
[1741432844656,0.02997442,86019.0,86018.0,0.0053796]
[1741432844898,0.01834942,86019.0,86018.0,0.25905445]
[1741432845250,0.01834942,86019.0,86018.0,0.26405445]
[1741432846621,0.00011606,86019.0,86018.0,0.26405445]
[1741432846823,0.00011606,86019.0,86018.0,0.25905445]
[1741432847032,0.00111606,86019.0,86018.0,0.26605445]
[1741432847265,0.00111606,86019.0,86018.0,0.5069282]
[1741432849344,0.00111606,86019.0,86018.0,0.5898282]
[1741432849546,0.011621,86051.0,86025.0,0.025]
[1741432849775,0.011621,86051.0,86020.0,0.23975769]
[1741432849776,0.011621,86046.0,86043.0,0.01454085]
[1741432849990,0.011621,86046.0,86044.0,0.11224]
[1741432850688,0.011621,86045.0,86044.0,0.11124]
[1741432851336,0.011621,86045.0,86044.0,0.11624]
[1741432851455,0.011621,86045.0,86044.0,0.11124]
[1741432851854,0.011621,86045.0,86044.0,0.11624]
[1741432853208,0.011621,86045.0,86044.0,0.11124]
[1741432853407,0.011621,86045.0,86044.0,0.11624]
[1741432853649,0.00011642,86051.0,86049.0,0.011621]
[1741432853857,0.00011642,86051.0,86049.0,0.01570282]
[1741432854149,0.00011642,86051.0,86045.0,0.01454085]
[1741432854150,0.011621,86046.0,86045.0,0.01454085]
[1741432855167,0.011621,86048.0,86045.0,0.01454085]
[1741432855303,0.011621,86050.0,86045.0,0.01454085]
[1741432855500,0.011621,86048.0,86045.0,0.0157029]
[1741432855704,0.011621,86047.0,86045.0,0.01454085]
[1741432856767,0.00011642,86051.0,86047.0,0.24696685]
[1741432856952,0.00011642,86051.0,86050.0,0.02616185]
[1741432857104,0.00028622,86051.0,86050.0,0.0273238]
[1741432857332,0.00028622,86051.0,86050.0,0.0157028]
[1741432857526,0.0185128,86051.0,86050.0,0.0157028]
[1741432858169,0.0185128,86051.0,86050.0,0.0197028]
[1741432858819,0.0185128,86051.0,86050.0,0.27108149]
[1741432859023,0.0185128,86051.0,86050.0,0.25829854]
[1741432860463,0.0185128,86051.0,86050.0,0.26991954]
[1741432861472,0.0185128,86051.0,86050.0,0.25829854]
[1741432862275,0.2625538,86051.0,86050.0,0.25829854]
[1741432862573,0.0301338,86051.0,86050.0,0.25829854]
[1741432862775,0.0185128,86051.0,86050.0,0.25829854]
[1741432862974,0.0185128,86051.0,86050.0,0.26991954]
[1741432863173,0.0185128,86051.0,86050.0,0.34761954]
[1741432863972,0.0185128,86051.0,86050.0,0.34361954]
[1741432864365,0.0185128,86051.0,86050.0,0.34965954]
[1741432864562,0.0001697,86067.0,86066.0,0.25853785]
[1741432864738,0.0001697,86070.0,86069.0,0.243989]
[1741432865008,0.00017,86092.0,86091.0,0.243927]
[1741432865201,0.00017,86092.0,86091.0,0.37114785]
[1741432865316,0.00028642,86092.0,86091.0,0.37114785]
[1741432866397,0.00028642,86092.0,86091.0,0.61090554]
[1741432867211,0.00028642,86092.0,86091.0,0.61094554]
[1741432867627,0.00028642,86092.0,86091.0,0.61194554]
[1741432867795,0.00028642,86092.0,86091.0,0.61094554]
[1741432867995,0.00028642,86092.0,86091.0,0.61394554]
[1741432868855,0.00028642,86092.0,86091.0,0.37001854]
[1741432869413,0.21245902,86096.0,86092.0,0.01454085]
[1741432869620,6.759e-05,86096.0,86095.0,0.02615585]
[1741432869802,6.759e-05,86096.0,86095.0,0.02731722]
[1741432870003,0.01828394,86096.0,86095.0,0.02731722]
[1741432870203,0.01828394,86096.0,86095.0,0.02615585]
[1741432871199,0.01828394,86096.0,86095.0,0.26791354]
[1741432872456,0.01828394,86096.0,86095.0,0.26795354]
[1741432872850,6.759e-05,86096.0,86095.0,0.26795354]
[1741432873713,6.759e-05,86096.0,86095.0,0.26595354]
[1741432873905,6.759e-05,86096.0,86095.0,0.35375354]
[1741432874115,6.759e-05,86096.0,86095.0,0.88775354]
[1741432874523,6.759e-05,86096.0,86095.0,0.88815406]
[1741432875092,6.759e-05,86096.0,86095.0,0.88315406]
[1741432875295,6.759e-05,86096.0,86095.0,0.89015406]
[1741432875740,6.759e-05,86096.0,86095.0,0.91515406]
[1741432875908,0.232213,86128.0,86119.0,0.243845]
[1741432876133,0.011611,86121.0,86120.0,0.12734085]
[1741432876310,0.011611,86123.0,86120.0,0.12734085]
[1741432877555,0.011611,86123.0,86120.0,0.13034085]
[1741432877713,0.243839,86122.0,86120.0,0.13034085]
[1741432878053,0.011611,86124.0,86120.0,0.13034085]
[1741432878256,0.01821211,86126.0,86120.0,0.13034085]
[1741432878466,0.01821211,86126.0,86125.0,0.25837185]
[1741432879036,0.01821211,86126.0,86124.0,0.01500198]
[1741432879215,0.01821211,86126.0,86124.0,0.01570184]
[1741432879415,0.02982211,86126.0,86124.0,0.01570184]
[1741432879613,0.02982211,86126.0,86122.0,0.01454085]
[1741432879824,0.01821211,86126.0,86124.0,0.01454085]
[1741432880027,0.01821211,86126.0,86124.0,0.02615185]
[1741432880225,0.01821211,86126.0,86125.0,0.25837185]
[1741432880631,0.011611,86125.0,86118.0,0.24677985]
[1741432880826,0.01821211,86126.0,86121.0,0.01454085]
[1741432881055,0.01821211,86126.0,86123.0,0.01454085]
[1741432881285,0.01821211,86126.0,86125.0,0.10895185]
[1741432881455,0.01821211,86126.0,86125.0,0.34912945]
[1741432881809,0.00038812,86130.0,86129.0,0.25835985]
[1741432881997,0.00038812,86130.0,86129.0,0.37127985]
[1741432884150,0.00038812,86130.0,86129.0,0.37827985]
[1741432885745,0.00038812,86130.0,86129.0,0.37807985]
[1741432886086,0.00038812,86130.0,86129.0,0.61783754]
[1741432886287,0.00038812,86130.0,86129.0,0.61787754]
[1741432888843,6e-07,86133.0,86132.0,0.40995185]
[1741432889012,0.00011692,86133.0,86132.0,0.70995185]
[1741432890084,0.00011692,86133.0,86132.0,0.71041298]
[1741432890832,0.00011692,86133.0,86132.0,0.71741298]
[1741432891038,0.011606,86162.0,86152.0,0.011607]
[1741432891268,0.011606,86162.0,86154.0,0.01454085]
[1741432891269,0.243739,86158.0,86154.0,0.01454085]
[1741432891469,0.011606,86156.0,86154.0,0.01454085]
[1741432891672,0.011606,86158.0,86154.0,0.01454085]
[1741432891884,0.011606,86158.0,86154.0,0.01570144]
[1741432892245,0.011606,86159.0,86154.0,0.01570144]
[1741432892449,0.011606,86159.0,86154.0,0.02170144]
[1741432892661,0.01172227,86162.0,86156.0,0.01454085]
[1741432892861,0.01162424,86162.0,86156.0,0.01570141]
[1741432894087,0.00011627,86162.0,86161.0,0.02614685]
[1741432894513,0.00028577,86162.0,86161.0,0.02614685]
[1741432895265,0.00028577,86162.0,86161.0,0.03114685]
[1741432896650,0.01189177,86162.0,86161.0,0.01954085]
[1741432897223,0.00028577,86162.0,86161.0,0.01954085]
[1741432897781,0.00028577,86162.0,86161.0,0.005]
[1741432898939,0.01189177,86162.0,86161.0,0.005]
[1741432899128,0.00028577,86162.0,86161.0,0.005]
[1741432900502,0.011606,86162.0,86161.0,0.005]
[1741432900927,0.19287568,86168.0,86161.0,0.005]
[1741432901107,0.011605,86165.0,86161.0,0.005]
[1741432901729,0.011606,86162.0,86161.0,0.005]
[1741432901941,0.011606,86162.0,86157.0,0.01454085]
[1741432902168,0.011604,86170.0,86164.0,0.011605]
[1741432902468,0.011605,86167.0,86165.0,0.11232]
[1741432902671,0.011605,86166.0,86165.0,0.11232]
[1741432904091,0.011605,86166.0,86165.0,0.11632]
[1741432905903,0.0117745,86166.0,86165.0,0.11632]
[1741432907447,0.0912745,86166.0,86165.0,0.004]
[1741432907643,0.0912745,86166.0,86165.0,0.11604]
[1741432908410,0.0117745,86166.0,86165.0,0.11604]
[1741432909576,0.0117745,86166.0,86165.0,0.11204]
[1741432910007,0.0117745,86166.0,86165.0,0.11404]
[1741432910156,0.0117745,86166.0,86165.0,0.11204]
[1741432910381,0.0117745,86166.0,86165.0,0.11404]
[1741432912043,0.3117745,86166.0,86165.0,0.002]
[1741432912241,0.3587745,86166.0,86165.0,0.002]
[1741432912701,0.4372745,86166.0,86165.0,0.002]
[1741432912915,0.011605,86163.0,86158.0,0.011606]
[1741432913118,0.011606,86161.0,86156.0,0.11192]
[1741432913759,0.011606,86157.0,86156.0,0.11192]
[1741432913940,0.3,86162.0,86156.0,0.344056]
[1741432914243,0.3,86162.0,86156.0,0.11192]
[1741432914244,0.011606,86157.0,86156.0,0.11192]
[1741432914398,0.011606,86157.0,86156.0,0.11492]
[1741432914799,0.011606,86157.0,86156.0,0.11192]
[1741432915169,0.311605,86167.0,86161.0,0.011606]
[1741432915365,0.011605,86165.0,86159.0,0.232128]
[1741432915650,0.011605,86163.0,86158.0,0.011606]
[1741432915856,0.311605,86164.0,86159.0,0.011606]
[1741432916075,0.011606,86162.0,86156.0,0.123526]
[1741432916470,0.3,86164.0,86160.0,0.011606]
[1741432916689,0.0001695,86166.0,86162.0,0.243723]
[1741432917309,0.0117745,86166.0,86160.0,0.011606]
[1741432917835,0.0117745,86166.0,86161.0,0.243729]
[1741432918047,0.0117745,86166.0,86162.0,0.001]
[1741432918252,0.0001695,86166.0,86163.0,0.232116]
[1741432918429,0.0001695,86166.0,86163.0,0.243721]
[1741432918931,0.0117745,86166.0,86160.0,0.011606]
[1741432919164,0.011605,86165.0,86160.0,0.011606]
[1741432919522,0.0001695,86166.0,86163.0,0.243721]
[1741432919919,0.0001695,86166.0,86165.0,0.011605]
[1741432921547,0.0001695,86166.0,86165.0,0.012605]
[1741432922179,0.0001695,86166.0,86165.0,0.26767589]
[1741432922382,0.0001695,86166.0,86165.0,0.26651542]
[1741432923821,0.0001695,86166.0,86165.0,0.26551542]
[1741432924023,0.0001695,86166.0,86165.0,0.27055542]
[1741432926468,0.0001695,86166.0,86165.0,0.25895042]
[1741432927102,0.0001695,86166.0,86165.0,0.27055542]
[1741432927321,0.0001695,86166.0,86165.0,0.25895042]
[1741432927516,0.0117745,86166.0,86165.0,0.37103042]
[1741432927918,0.0117745,86166.0,86165.0,0.35648957]
[1741432928652,0.0001695,86166.0,86165.0,0.35652957]
[1741432929771,0.0001695,86166.0,86165.0,0.35696957]
[1741432929908,0.0117745,86166.0,86165.0,0.35696957]
[1741432931991,0.0117745,86166.0,86165.0,0.35730857]
[1741432933001,0.0001695,86166.0,86165.0,0.36891357]
[1741432933628,0.0001695,86166.0,86165.0,0.35730857]
[1741432934040,0.0117745,86166.0,86165.0,0.35730857]
[1741432934242,0.0001695,86166.0,86165.0,0.35730857]
[1741432934481,0.0117745,86166.0,86165.0,0.35730857]
[1741432935019,0.02615707,86166.0,86165.0,0.35730857]
[1741432935861,0.02615707,86166.0,86165.0,0.005419]
[1741432935862,0.40135707,86166.0,86165.0,0.005419]
[1741432936829,0.45015707,86166.0,86165.0,0.005419]
[1741432937032,0.48441594,86166.0,86165.0,0.005419]
[1741432937255,0.48441594,86166.0,86165.0,0.000419]
[1741432937455,0.48441594,86166.0,86165.0,0.002419]
[1741432937876,0.48441594,86166.0,86165.0,0.000419]
[1741432938095,0.48441594,86166.0,86165.0,0.001419]
[1741432940875,0.48441594,86166.0,86165.0,0.000419]
[1741432941667,0.49300154,86166.0,86165.0,0.000419]
[1741432942579,0.49300154,86166.0,86165.0,1e-06]
[1741432944552,0.45874267,86166.0,86165.0,1e-06]
[1741432945229,0.0001695,86166.0,86165.0,1e-06]
[1741432945443,0.0001695,86166.0,86165.0,0.011606]
[1741432945660,0.0001695,86166.0,86165.0,1e-06]
[1741432945865,0.0001695,86166.0,86165.0,0.011606]
[1741432946279,0.0001695,86166.0,86165.0,1e-06]
[1741432946684,0.0117745,86166.0,86165.0,1e-06]
[1741432947659,0.0117745,86166.0,86165.0,0.001001]
[1741432948888,0.0581745,86166.0,86165.0,0.001001]
[1741432950446,0.0581745,86166.0,86165.0,1e-06]
[1741432950648,0.0117745,86166.0,86165.0,1e-06]
[1741432952477,0.0001695,86166.0,86165.0,1e-06]
[1741432952674,0.0117745,86166.0,86165.0,1e-06]
[1741432953202,0.0001695,86166.0,86165.0,1e-06]
[1741432953345,0.0117745,86166.0,86165.0,1e-06]
[1741432954301,0.0001695,86166.0,86165.0,1e-06]
[1741432954720,0.0001695,86166.0,86165.0,0.011606]
[1741432955745,0.0001695,86166.0,86165.0,1e-06]
[1741432957113,0.0001695,86166.0,86165.0,0.006001]
[1741432957980,0.0117745,86166.0,86165.0,0.006001]
[1741432960463,0.0117745,86166.0,86165.0,1e-06]
[1741432960665,0.0117745,86166.0,86165.0,0.005001]
[1741432961474,0.0117745,86166.0,86165.0,1e-06]
[1741432961853,0.0117745,86166.0,86165.0,0.003001]
[1741432963855,0.0117745,86166.0,86165.0,1e-06]
[1741432964207,0.0117745,86166.0,86165.0,0.003001]
[1741432977850,0.23211,86166.0,86165.0,0.003001]
[1741432978087,0.243715,86166.0,86165.0,0.003001]
[1741432978495,0.326915,86166.0,86165.0,0.003001]
[1741432979234,0.3270848,86166.0,86165.0,0.003001]
[1741432979436,0.3270848,86166.0,86165.0,1e-06]
[1741432980922,0.3750848,86166.0,86165.0,1e-06]
[1741432982776,0.6750848,86166.0,86165.0,1e-06]
[1741432982993,0.70937219,86166.0,86165.0,1e-06]
[1741432984699,0.6750848,86166.0,86165.0,1e-06]
[1741432987882,0.70934894,86166.0,86165.0,1e-06]
[1741432989985,0.011606,86155.0,86154.0,1e-06]
[1741432990188,0.70239999,86155.0,86154.0,1e-06]
[1741432993365,0.72739999,86155.0,86154.0,1e-06]
[1741432994809,0.73597247,86155.0,86154.0,1e-06]
[1741432996711,0.75979233,86155.0,86154.0,1e-06]
[1741432999018,0.98619506,86155.0,86154.0,1e-06]
[1741432999873,0.88519506,86155.0,86154.0,1e-06]
[1741433000070,0.8129752,86155.0,86154.0,1e-06]
[1741433001125,0.77872021,86155.0,86154.0,1e-06]
[1741433002559,0.77889011,86155.0,86154.0,1e-06]
[1741433004954,0.55248738,86155.0,86154.0,1e-06]
[1741433006737,0.58674505,86155.0,86154.0,1e-06]
[1741433007114,0.55248738,86155.0,86154.0,1e-06]
[1741433007511,0.58675118,86155.0,86154.0,1e-06]
[1741433009210,0.66495118,86155.0,86154.0,1e-06]
[1741433010116,0.57834518,86155.0,86154.0,1e-06]
[1741433010324,0.63705118,86155.0,86154.0,1e-06]
[1741433010874,0.86345391,86155.0,86154.0,1e-06]